{"text_format":"1","workbook":"xlsx","n_sheets":6,"sheets":["411_B_CRITERI","CR_3_GRIGLIA","Dettaglio_Investimenti","Calcolo_Punteggio","ELENCHI","Sub_Interventi"],"not_rendered":{"charts":0,"images":0,"macros":1,"external_links":0,"defined_names":10,"comments":0,"pivot_tables":1},"unopened":[],"bounds":{"document_bytes":16777216,"sheet_cells":100000,"rows_first":2000,"rows_last":500,"rows_between":2000,"halvings":0,"cell_chars":16384,"cell_head_chars":4096},"cells_cut":0,"cells_raw":0,"read":"whole","date_system":"1900"}

{"sheet":"411_B_CRITERI","index":0,"n_rows":53,"n_cols":12,"rows_kept":53,"cut":false,"hidden":false,"merged":[[0,7,2,7],[1,11,2,11],[1,0,1,2],[48,0,48,5],[0,1,0,2],[15,0,15,1],[4,0,4,1],[31,1,35,1],[30,0,30,1],[47,2,47,4],[46,2,46,4],[37,0,37,1],[3,0,3,1],[6,0,12,0],[38,1,45,1],[36,0,36,1],[31,0,35,0],[43,5,45,5],[0,4,0,6],[43,6,45,6],[39,5,41,5],[39,6,41,6],[3,7,4,7],[31,3,31,5],[32,7,35,7],[38,3,38,5],[42,3,42,5],[32,5,35,5],[37,4,37,6],[36,4,36,5],[18,7,21,7],[39,7,41,7],[3,4,3,5],[6,5,12,5],[6,6,12,6],[4,4,4,6],[24,0,28,0],[30,4,30,6],[14,0,14,1],[22,0,22,1],[23,0,23,1],[17,0,21,0],[17,1,21,1],[29,4,29,5],[29,0,29,1],[16,3,16,4],[24,3,24,5],[17,3,17,5],[25,5,28,5],[18,5,21,5],[18,6,21,6],[25,6,28,6],[18,11,21,11],[32,11,35,11],[25,10,28,10],[32,8,35,8],[32,9,35,9],[32,6,35,6],[6,1,12,1],[24,1,28,1],[6,11,12,11],[25,11,28,11],[6,7,12,7],[25,7,28,7],[14,4,14,5],[15,4,15,6],[23,4,23,6],[22,4,22,5],[6,8,12,8],[6,9,12,9],[18,8,21,8],[18,9,21,9],[25,8,28,8],[25,9,28,9],[43,7,45,7],[39,11,41,11],[43,9,45,9],[43,8,45,8],[43,11,45,11],[39,8,41,8],[39,9,41,9],[39,10,41,10],[50,0,50,5],[50,6,50,11],[51,0,51,5],[51,6,51,11],[52,3,52,5]]}
["DITTA",null,null,"CUAA",null,null,null,"documento attestante il diritto alla premialità (sezione per il richiedente)",null,null,null,"ISTRUTTORIA"]
["Per compilare la scheda relativa al punteggio, cliccare su \"Inizia Autovalutazione\"",null,null,null,null,null,null,null,null,null,null,"Per l'attività istruttoria cliccare su \"Inizia Istruttoria\""]
[null,null,{"$f":"+IF(D3<>\"\",\"verifica il punteggio attribuito ai singoli criteri!\",\"\")","v":""},{"$f":"IF(SUMIF(C4:D46,\"punteggio max\",D4:D46)<>100,SUMIF(C4:D46,\"punteggio max\",D4:D46),\"\")","v":""}]
["1 -  Tipologia di richiedente",null,"punteggio max",17,"RICHIEDENTE",null,"ISTRUTTORIA",{"$f":"CONCATENATE(I6,\" - \",I7,\" - \",I14,\" - \",I17,\" - \",I19,\" - \",I26,\" - \",I33,\" - \",I40,\" - \",I41,\" - \",I44,\" - \",I46)","v":"  -   -   -   -   -  -  -   -  -   - "}]
["Descrizione",null,"Modalità di attribuzione","punti","punteggio attribuito"]
["1.1","Imprese condotte da giovani agricoltori di cui all'art. 2, lett. n) del Reg. 1305/2013 che presentino la domanda di aiuto entro i 5 anni dal primo insediamento.","Per l'attribuzione del punteggio dovrà essere soddisfatta la seguente condizione: alla data di rilascio sul portale SIAN della domanda di aiuto, il richiedente (titolare di ditta individuale o rappresentante legale nel caso delle società) non deve avere un'età superiore a 40 anni (41 anni non compiuti), non deve essersi insediato da più di 5 anni e deve avere adeguate qualifiche e competenze professionali",10,false,{"$f":"+IF(E6=TRUE,D6,0)","v":0},null,null,{"$f":"+IF(AND(H6<>0,F6=0),\"verifica criterio 1.1\",\" \")","v":" "},{"$f":"+IF(I6<>\" \",\"V\",1)","v":1}]
["1.2","Titolo di studio e formazione","Titolare o rappresentante legale  con titolo di studio universitario del vecchio ordinamento o laurea magistrale (già specialistica) attinente al settore agrario, forestale o veterinario, come riconosciuto dalla classificazione normativa vigente",5,7,{"$f":"+IF(E7=1,D7,IF(E7=2,D8,IF(E7=3,D9,IF(E7=4,D10,IF(E7=5,D11,IF(E7=6,D12,IF(E7=7,D13,IF(E7=7,D14,0))))))))","v":0},null,null,{"$f":"+IF(AND(H7<>0,F7=0),\"verifica criterio 1.2\",\" \")","v":" "},{"$f":"+IF(I7<>\" \",\"V\",1)","v":1}]
[null,null,"Titolare o rappresentante legale con titolo di studio universitario triennale attinente al settore agrario, forestale o veterinario, come riconosciuto dalla classificazione normativa vigente",4]
[null,null,"Titolare o rappresentante legale con titolo di studio quinquennale di scuola secondaria di secondo grado attinente al settore agrario",3]
[null,null,"Titolare o rappresentante legale con titolo di studio universitario del vecchio ordinamento o laurea magistrale (già specialistica) attinente altri settori",2]
[null,null,"Titolare o rappresentante legale con titolo di studio universitario triennale attinente altri settori.",1]
[null,null,"Attestazione per 100 ore di formazione con profitto in materie agrarie, forestali e zootecniche",1]
[null,null,"nessun titolo da valutare",0]
["1.3","Adesione alla rete del lavoro agricolo di qualità ","Adesione, alla data del rilascio della domanda di sostegno, alla rete del lavoro agricolo di qualità del lavoro agricolo di cui alla legge n. 199 del 2016",2,false,{"$f":"IF(E14=TRUE,D14,0)","v":0},null,null,{"$f":"+IF(AND(H14<>0,F14=0),\"verifica criterio 1.3\",\" \")","v":" "},{"$f":"+IF(I14<>\" \",\"V\",1)","v":1}]
["2 - Caratteristiche tecniche del progetto",null,"punteggio max",48,"RICHIEDENTE",null,"ISTRUTTORIA"]
["Descrizione",null,"Modalità di attribuzione","punti","punteggio attribuito"]
["2.1","Investimenti\nFavorire lo sviluppo delle filiere e la realizzazione di progetti compatibili con le caratteristiche produttive dell’azienda","L’assegnazione del punteggio è basata sulle caratteristiche dell’investimento che si intende realizzare. \n\nLa spesa per il singolo investimento può essere associata ad un solo codice investimento.\n\nAi fini della assegnazione del punteggio si valutano tutti gli investimenti con il grado di priorità definito dall’abbinamento investimento – settore produttivo.\n\nIl punteggio è calcolato con la media dei punteggi delle varie tipologie di investimenti previsti dall’azienda ponderata sulla base dell’incidenza della spesa ammissibile per l’investimento specifico sulla spesa ammissibile totale.\n\nMedia ponderata con un max di 43 punti\n",null,null,{"$f":"ROUND(INDEX(Calcolo_Punteggio!$A$1:$T$60,VLOOKUP(\"Totale complessivo\",Calcolo_Punteggio!$A$1:$T$60,20,FALSE),+HLOOKUP(\"Punteggio totale\",Calcolo_Punteggio!$A$2:$S$60,59,FALSE)),2)","v":0},null,null,{"$f":"+IF(AND(H17<>0,F17=0),\"verifica criterio 2.1\",\" \")","v":" "},{"$f":"+IF(I17<>\" \",\"V\",1)","v":1}]
["2.2","Caratteristiche strutturali\nFavorire la riduzione del carico di bestiame sul territorio","L’assegnazione del punteggio è basata sulle caratteristiche strutturali dell’azienda e dell’investimento che si intende realizzare.\nIl criterio UBA/ha (superfici foraggere e cerealicole destinate all'allevamento), definito in fase progettuale, è verificato alla data di presentazione della domanda di saldo (la verifica verrà\neffettuata sul fascicolo aziendale)"]
[null,null,"inferiore o uguale a 1,5",5,4,{"$f":"+IF(E19=1,D19,IF(E19=2,D20,IF(E19=3,D21,D22)))","v":0},null,null,{"$f":"+IF(AND(H19<>0,F19=0),\"verifica criterio 2.2\",\" \")","v":" "},{"$f":"+IF(I19<>\" \",\"V\",1)","v":1}]
[null,null,"maggiore di 1,5 inferiore o uguale 2,5",4]
[null,null,"maggiore di 2,5 inferiore o uguale 3",3]
[null,null,"maggiore di 3",0]
["3 - Dimensione economica dell'azienda",null,"punteggio max",10,"RICHIEDENTE",null,"ISTRUTTORIA"]
["Descrizione",null,"Modalità di attribuzione","punti","punteggio attribuito"]
[3,"Favorire imprese con produzione standard compresa in range definiti","L’assegnazione del punteggio è basata sulle caratteristiche  dell’azienda al momento della presentazione dell’istanza di aiuto.\nLa valutazione è effettuata sulla produzione standard aziendale come da piano colturale del fascicolo aziendale calcolata, mediante la procedura automatizzata disponibile, denominata Class CE-lite messa a disposizione dal CREA, con riferimento alle superfici, alla loro destinazione produttiva ed agli allevamenti. \nFermo restando il riferimento al fascicolo aziendale, per il calcolo dovranno essere utilizzati i valori medi dell’ultimo triennio  "]
[null,null,"Maggiore di 100.000 euro fino a 200.000 euro",10,4,{"$f":"+IF(E26=1,D26,IF(E26=2,D27,IF(E26=3,D28,D29)))","v":0},null,"Output digitale del Prodotto Standard aziendale (produzioni vegetali e produzioni zootecniche) calcolato con l’applicativo Class CE Lite"]
[null,null,"Maggiore di 60.000 euro fino a 100.000 euro",8]
[null,null,"Da 15.000 euro fino a 60.000 euro",6]
[null,null,"Oltre 200.000 euro",0]
["4 - Caratteristiche economiche del progetto",null,"punteggio max",10,"RICHIEDENTE",null,"ISTRUTTORIA"]
["Descrizione",null,"Modalità di attribuzione","punti","punteggio attribuito"]
[4,"Favorire la realizzazione di progetti compatibili con le possibilità di spesa delle aziende","Valutazione del Business Plan presentato che deve avere un RO maggiore di zero nell’anno di entrata a regime del progetto."]
[null,null,"incremento della redditività aziendale, in termini di reddito operativo ≥ 30%",10,4,{"$f":"+IF(E33=1,D33,IF(E33=2,D34,IF(E33=3,D35,D36)))","v":0},null,"BPOL"]
[null,null,"incremento della redditività aziendale, in termini di reddito operativo ≥ 20 e < 30%",7]
[null,null,"incremento della redditività aziendale, in termini di reddito operativo ≥10 e < 20%",3]
[null,null,"Incremento della redditività aziendale <10%",0]
["5 - Qualità delle produzioni",null,"punteggio max",15,"RICHIEDENTE",null,"ISTRUTTORIA"]
["Descrizione",null,"Modalità di attribuzione","punti","punteggio attribuito"]
[null,"Prodotti aderenti ai regimi di qualità di cui all’articolo 16 paragrafo 1 del regolamento 1305/13 la cui area di produzione ricade nel territorio della Regione Campania","L’assegnazione del punteggio è basata sulla presenza, alla data di rilascio della domanda di sostegno:"]
["5.1",null,"certificazione \"Mozzarella di Bufala Campana DOP\". Il punteggio spetta solo per la produzione aziendale di Mozzarella di Bufala Campana DOP e non per la produzione di latte di bufala, indipendentemente dalla sua destinazione. Trasformazione in azienda del 100% del latte prodotto in Mozzarella di Bufala Campana DOP",8,3,{"$f":"+IF(E40=1,D40,IF(E40=2,D41,0))","v":0},null,null,{"$f":"+IF(AND(H40<>0,F40=0),\"verifica criterio 5.1 e 5.2\",\" \")","v":" "},{"$f":"+IF(I40<>\" \",\"V\",1)","v":1}]
["5.2",null,"l’azienda risulta immessa nel sistema dei controlli dell’Organismo di Controllo autorizzato, in qualità di produttore di latte, categoria allevatori",5]
[null,null,"nessuna premialità",0]
[null,null,"L’assegnazione del punteggio è data dalla presenza, alla data di rilascio della domanda di sostegno: "]
["5.3",null,"certificato di conformità (o certificato equivalente ai sensi dell'art. 35 del Reg. 2018/848), per produzioni zootecniche biologiche (sono escluse le certificazioni per prodotti in conversione)",7,3,{"$f":"+IF(E44=1,D44,IF(E44=2,D45,0))","v":0},null,null,{"$f":"+IF(AND(H44<>0,F44=0),\"verifica criterio 5.3 e 5.4\",\" \")","v":" "},{"$f":"+IF(I44<>\" \",\"V\",1)","v":1}]
["5.4",null,"documento giustificativo (o certificato equivalente ai sensi dell'art. 35 del Reg. 2018/848) di adesione dell'intera azienda ai sistemi di produzione zootecnica certificata biologica Reg. CE 834/07 e 889/08 s.m. e i.",4]
[null,null,"nessuna premialità",0]
[null,null,"TOTALE PUNTEGGIO",null,null,{"$f":"+F6+F7+F14+F26+F17+F19+F33+F40+F44","v":0},{"$f":"+G6+G7+G14+G26+G17+G19+G33+G40+G44","v":0},{"$f":"IF(F47=0,\"Scheda non compilata\",IF(F47<$I47,\"Punteggio minimo non raggiunto\",\"Punteggio minimo raggiunto\"))","v":"Scheda non compilata"},40,null,null,{"$f":"IF(G47=0,\"Istruttoria non compilata\",IF(G47<$I47,\"Punteggio minimo non raggiunto\",\"Punteggio minimo raggiunto\"))","v":"Istruttoria non compilata"}]
[null,null,"TOTALE PROGETTO",null,null,{"$f":"+F17+F19+F33+F40+F44","v":0},{"$f":"+G17+G19+G33+G40+G44","v":0},{"$f":"IF(F48=0,\"Scheda non compilata\",IF(F48<$I48,\"Punteggio minimo non raggiunto\",\"Punteggio minimo raggiunto\"))","v":"Scheda non compilata"},24,null,null,{"$f":"IF(G48=0,\"Istruttoria non compilata\",IF(G48<$I48,\"Punteggio minimo non raggiunto\",\"Punteggio minimo raggiunto\"))","v":"Istruttoria non compilata"}]
[]
[]
["NOTE AGGIUNTIVE RICHIEDENTE",null,null,null,null,null,"NOTE AGGIUNTIVE ISTRUTTORE"]
[]
["data,",{"$f":"TODAY()","v":"2022-08-09"},"Firma"]

{"sheet":"CR_3_GRIGLIA","index":1,"n_rows":22,"n_cols":4,"rows_kept":22,"cut":false,"hidden":false,"merged":[]}
["codice investimento","INVESTIMENTI",null,"Filiera Bufalina"]
[null,null,null,1]
[4110001001,"miglioramenti fondiari per la realizzazione degli elementi strutturali per la gestione dei pascoli aziendali; \ni drenaggi sono esclusi",1,30]
[4110001002,"Ristrutturazione/ammodernamento di fabbricati per trasformazione e commercializzazione, lavorazione dei prodotti dell’allevamento provenienti dall’attività aziendale alle seguenti condizioni:\n1 - il prodotto in uscita (output) deve sempre essere compreso nei prodotti dell'allegato I del TFUE\n2 - la spesa ammessa relativa alle specifiche macchine, attrezzature e impianti deve essere ≥ 25% della spesa ammessa per questo investimento\n3 - la materia prima (latte/carne) deve provenire per più del 50% dall'allevamento ",2,43]
[4110001003,"Costruzione ex novo di fabbricati per trasformazione e commercializzazione, lavorazione dei prodotti dell’allevamento provenienti dall’attività aziendale alle seguenti condizioni:\n1 - il prodotto in uscita (output) deve sempre essere compreso nei prodotti dell'allegato I del TFUE\n2 - la spesa ammessa relativa alle specifiche macchine, attrezzature e impianti deve essere ≥ 25% della spesa ammessa per questo investimento\n3 - la materia prima (latte/carne) deve provenire per più del 50% dall'allevamento",3,35]
[4110001004,"Ristrutturazione/ammodernamento di stalla, sala mungitura, paddock",4,35]
[4110001005,"Costruzione ex novo di stalla, sala mungitura, paddock",5,30]
[4110001006,"Ristrutturazione/ammodernamento di fienile e depositi",6,20]
[4110001007,"Costruzione ex novo di fienile e depositi",7,15]
[4110001008,"Realizzare interventi sulle strutture di allevamento o impianti e attrezzature per migliorare il microclima negli allevamenti, riduzione delle emissioni in atmosfera o finalizzati alla biosicurezza, compresi nell'elenco allegato al bando",8,43]
[4110001009,"Trattrici/macchine/attrezzature innovative incluse nell’elenco allegato al bando",9,35]
[4110001010,"Realizzazione di strade poderali, spazi per la manovra dei mezzi agricoli, recinzioni e tutti gli altri investimenti non compresi nelle voci precedenti",10,0]
[]
[null,"Priorità","Punteggio"]
[null,"Altamente strategica - verde (V)",43]
[null,"Strategica - rosso (S)",35]
[null,"Alta – arancio (A)",30]
[null,"Media - giallo (M)",20]
[null,"Bassa - blu (B)",15]
[null,"Nessuna - bianco",0]
[]
[null,"Il punteggio complessivo è calcolato come media dei punteggi delle varie tipologie d’investimento previsti dall’azienda ponderata per la spesa ammissibile\n(escluso le spese generali) Ad esempio, investimenti in termini di spesa ammissibile sono suddivisi\nInvestimenti S: 35%\nInvestimenti A: 30%\nInvestimenti M: 35%\nIl punteggio è determinato con la seguente modalità di calcolo\nPunteggio = (0,35(Xpunti)+0,30(Ypunti)+0,35 (Zpunti))\nIl punteggio viene arrotondato alla seconda cifra decimale\n"]

{"sheet":"Dettaglio_Investimenti","index":2,"n_rows":55,"n_cols":10,"rows_kept":55,"cut":false,"hidden":false,"merged":[]}
["ID","codice investimento","Investimento","Settore","sub intervento in domanda di sostegno","Importo","Tipo Investimento","% Investimento","Punteggio TipoInvestimento","Punteggio Pesato"]
[1,null,{"$f":"+IF(B2=\"\",\"\",VLOOKUP(B2,CR_3_GRIGLIA!$A$3:$B$12,2,FALSE))","v":""},null,null,null,{"$f":"+IF(I2=\"\",\"\",IF(I2=CR_3_GRIGLIA!$C$15,CR_3_GRIGLIA!$B$15,IF(I2=CR_3_GRIGLIA!$C$16,CR_3_GRIGLIA!$B$16,IF(I2=CR_3_GRIGLIA!$C$17,CR_3_GRIGLIA!$B$17,IF(I2=CR_3_GRIGLIA!$C$18,CR_3_GRIGLIA!$B$18,CR_3_GRIGLIA!$B$20)))))","v":""},{"$f":"IFERROR(IF(F2=\"\",\"\",F2/$F$55),0)","v":""},{"$f":"+IF(D2=\"\",\"\",IF(C2=\"\",0,INDEX(CR_3_GRIGLIA!$D$3:$D$12,+VLOOKUP(B2,CR_3_GRIGLIA!$A$3:$C$12,3,FALSE),+HLOOKUP(D2,CR_3_GRIGLIA!$D$1:$D$2,2,FALSE))))","v":""},{"$f":"IFERROR(IF(I2=\"\",\"\",I2*F2/$F$55),0)","v":""}]
[2,null,{"$f":"+IF(B3=\"\",\"\",VLOOKUP(B3,CR_3_GRIGLIA!$A$3:$B$12,2,FALSE))","v":""},null,null,null,{"$f":"+IF(I3=\"\",\"\",IF(I3=CR_3_GRIGLIA!$C$15,CR_3_GRIGLIA!$B$15,IF(I3=CR_3_GRIGLIA!$C$16,CR_3_GRIGLIA!$B$16,IF(I3=CR_3_GRIGLIA!$C$17,CR_3_GRIGLIA!$B$17,IF(I3=CR_3_GRIGLIA!$C$18,CR_3_GRIGLIA!$B$18,CR_3_GRIGLIA!$B$20)))))","v":""},{"$f":"IFERROR(IF(F3=\"\",\"\",F3/$F$55),0)","v":""},{"$f":"+IF(D3=\"\",\"\",IF(C3=\"\",0,INDEX(CR_3_GRIGLIA!$D$3:$D$12,+VLOOKUP(B3,CR_3_GRIGLIA!$A$3:$C$12,3,FALSE),+HLOOKUP(D3,CR_3_GRIGLIA!$D$1:$D$2,2,FALSE))))","v":""},{"$f":"IFERROR(IF(I3=\"\",\"\",I3*F3/$F$55),0)","v":""}]
[3,null,{"$f":"+IF(B4=\"\",\"\",VLOOKUP(B4,CR_3_GRIGLIA!$A$3:$B$12,2,FALSE))","v":""},null,null,null,{"$f":"+IF(I4=\"\",\"\",IF(I4=CR_3_GRIGLIA!$C$15,CR_3_GRIGLIA!$B$15,IF(I4=CR_3_GRIGLIA!$C$16,CR_3_GRIGLIA!$B$16,IF(I4=CR_3_GRIGLIA!$C$17,CR_3_GRIGLIA!$B$17,IF(I4=CR_3_GRIGLIA!$C$18,CR_3_GRIGLIA!$B$18,CR_3_GRIGLIA!$B$20)))))","v":""},"",{"$f":"+IF(D4=\"\",\"\",IF(C4=\"\",0,INDEX(CR_3_GRIGLIA!$D$3:$D$12,+VLOOKUP(B4,CR_3_GRIGLIA!$A$3:$C$12,3,FALSE),+HLOOKUP(D4,CR_3_GRIGLIA!$D$1:$D$2,2,FALSE))))","v":""},""]
[4,null,{"$f":"+IF(B5=\"\",\"\",VLOOKUP(B5,CR_3_GRIGLIA!$A$3:$B$12,2,FALSE))","v":""},null,null,null,{"$f":"+IF(I5=\"\",\"\",IF(I5=CR_3_GRIGLIA!$C$15,CR_3_GRIGLIA!$B$15,IF(I5=CR_3_GRIGLIA!$C$16,CR_3_GRIGLIA!$B$16,IF(I5=CR_3_GRIGLIA!$C$17,CR_3_GRIGLIA!$B$17,IF(I5=CR_3_GRIGLIA!$C$18,CR_3_GRIGLIA!$B$18,CR_3_GRIGLIA!$B$20)))))","v":""},"",{"$f":"+IF(D5=\"\",\"\",IF(C5=\"\",0,INDEX(CR_3_GRIGLIA!$D$3:$D$12,+VLOOKUP(B5,CR_3_GRIGLIA!$A$3:$C$12,3,FALSE),+HLOOKUP(D5,CR_3_GRIGLIA!$D$1:$D$2,2,FALSE))))","v":""},""]
[5,null,{"$f":"+IF(B6=\"\",\"\",VLOOKUP(B6,CR_3_GRIGLIA!$A$3:$B$12,2,FALSE))","v":""},null,null,null,{"$f":"+IF(I6=\"\",\"\",IF(I6=CR_3_GRIGLIA!$C$15,CR_3_GRIGLIA!$B$15,IF(I6=CR_3_GRIGLIA!$C$16,CR_3_GRIGLIA!$B$16,IF(I6=CR_3_GRIGLIA!$C$17,CR_3_GRIGLIA!$B$17,IF(I6=CR_3_GRIGLIA!$C$18,CR_3_GRIGLIA!$B$18,CR_3_GRIGLIA!$B$20)))))","v":""},"",{"$f":"+IF(D6=\"\",\"\",IF(C6=\"\",0,INDEX(CR_3_GRIGLIA!$D$3:$D$12,+VLOOKUP(B6,CR_3_GRIGLIA!$A$3:$C$12,3,FALSE),+HLOOKUP(D6,CR_3_GRIGLIA!$D$1:$D$2,2,FALSE))))","v":""},""]
[6,null,{"$f":"+IF(B7=\"\",\"\",VLOOKUP(B7,CR_3_GRIGLIA!$A$3:$B$12,2,FALSE))","v":""},null,null,null,{"$f":"+IF(I7=\"\",\"\",IF(I7=CR_3_GRIGLIA!$C$15,CR_3_GRIGLIA!$B$15,IF(I7=CR_3_GRIGLIA!$C$16,CR_3_GRIGLIA!$B$16,IF(I7=CR_3_GRIGLIA!$C$17,CR_3_GRIGLIA!$B$17,IF(I7=CR_3_GRIGLIA!$C$18,CR_3_GRIGLIA!$B$18,CR_3_GRIGLIA!$B$20)))))","v":""},"",{"$f":"+IF(D7=\"\",\"\",IF(C7=\"\",0,INDEX(CR_3_GRIGLIA!$D$3:$D$12,+VLOOKUP(B7,CR_3_GRIGLIA!$A$3:$C$12,3,FALSE),+HLOOKUP(D7,CR_3_GRIGLIA!$D$1:$D$2,2,FALSE))))","v":""},""]
[7,null,{"$f":"+IF(B8=\"\",\"\",VLOOKUP(B8,CR_3_GRIGLIA!$A$3:$B$12,2,FALSE))","v":""},null,null,null,{"$f":"+IF(I8=\"\",\"\",IF(I8=CR_3_GRIGLIA!$C$15,CR_3_GRIGLIA!$B$15,IF(I8=CR_3_GRIGLIA!$C$16,CR_3_GRIGLIA!$B$16,IF(I8=CR_3_GRIGLIA!$C$17,CR_3_GRIGLIA!$B$17,IF(I8=CR_3_GRIGLIA!$C$18,CR_3_GRIGLIA!$B$18,CR_3_GRIGLIA!$B$20)))))","v":""},"",{"$f":"+IF(D8=\"\",\"\",IF(C8=\"\",0,INDEX(CR_3_GRIGLIA!$D$3:$D$12,+VLOOKUP(B8,CR_3_GRIGLIA!$A$3:$C$12,3,FALSE),+HLOOKUP(D8,CR_3_GRIGLIA!$D$1:$D$2,2,FALSE))))","v":""},""]
[8,null,{"$f":"+IF(B9=\"\",\"\",VLOOKUP(B9,CR_3_GRIGLIA!$A$3:$B$12,2,FALSE))","v":""},null,null,null,{"$f":"+IF(I9=\"\",\"\",IF(I9=CR_3_GRIGLIA!$C$15,CR_3_GRIGLIA!$B$15,IF(I9=CR_3_GRIGLIA!$C$16,CR_3_GRIGLIA!$B$16,IF(I9=CR_3_GRIGLIA!$C$17,CR_3_GRIGLIA!$B$17,IF(I9=CR_3_GRIGLIA!$C$18,CR_3_GRIGLIA!$B$18,CR_3_GRIGLIA!$B$20)))))","v":""},"",{"$f":"+IF(D9=\"\",\"\",IF(C9=\"\",0,INDEX(CR_3_GRIGLIA!$D$3:$D$12,+VLOOKUP(B9,CR_3_GRIGLIA!$A$3:$C$12,3,FALSE),+HLOOKUP(D9,CR_3_GRIGLIA!$D$1:$D$2,2,FALSE))))","v":""},""]
[9,null,{"$f":"+IF(B10=\"\",\"\",VLOOKUP(B10,CR_3_GRIGLIA!$A$3:$B$12,2,FALSE))","v":""},null,null,null,{"$f":"+IF(I10=\"\",\"\",IF(I10=CR_3_GRIGLIA!$C$15,CR_3_GRIGLIA!$B$15,IF(I10=CR_3_GRIGLIA!$C$16,CR_3_GRIGLIA!$B$16,IF(I10=CR_3_GRIGLIA!$C$17,CR_3_GRIGLIA!$B$17,IF(I10=CR_3_GRIGLIA!$C$18,CR_3_GRIGLIA!$B$18,CR_3_GRIGLIA!$B$20)))))","v":""},"",{"$f":"+IF(D10=\"\",\"\",IF(C10=\"\",0,INDEX(CR_3_GRIGLIA!$D$3:$D$12,+VLOOKUP(B10,CR_3_GRIGLIA!$A$3:$C$12,3,FALSE),+HLOOKUP(D10,CR_3_GRIGLIA!$D$1:$D$2,2,FALSE))))","v":""},""]
[10,null,{"$f":"+IF(B11=\"\",\"\",VLOOKUP(B11,CR_3_GRIGLIA!$A$3:$B$12,2,FALSE))","v":""},null,null,null,{"$f":"+IF(I11=\"\",\"\",IF(I11=CR_3_GRIGLIA!$C$15,CR_3_GRIGLIA!$B$15,IF(I11=CR_3_GRIGLIA!$C$16,CR_3_GRIGLIA!$B$16,IF(I11=CR_3_GRIGLIA!$C$17,CR_3_GRIGLIA!$B$17,IF(I11=CR_3_GRIGLIA!$C$18,CR_3_GRIGLIA!$B$18,CR_3_GRIGLIA!$B$20)))))","v":""},"",{"$f":"+IF(D11=\"\",\"\",IF(C11=\"\",0,INDEX(CR_3_GRIGLIA!$D$3:$D$12,+VLOOKUP(B11,CR_3_GRIGLIA!$A$3:$C$12,3,FALSE),+HLOOKUP(D11,CR_3_GRIGLIA!$D$1:$D$2,2,FALSE))))","v":""},""]
[11,null,{"$f":"+IF(B12=\"\",\"\",VLOOKUP(B12,CR_3_GRIGLIA!$A$3:$B$12,2,FALSE))","v":""},null,null,null,{"$f":"+IF(I12=\"\",\"\",IF(I12=CR_3_GRIGLIA!$C$15,CR_3_GRIGLIA!$B$15,IF(I12=CR_3_GRIGLIA!$C$16,CR_3_GRIGLIA!$B$16,IF(I12=CR_3_GRIGLIA!$C$17,CR_3_GRIGLIA!$B$17,IF(I12=CR_3_GRIGLIA!$C$18,CR_3_GRIGLIA!$B$18,CR_3_GRIGLIA!$B$20)))))","v":""},"",{"$f":"+IF(D12=\"\",\"\",IF(C12=\"\",0,INDEX(CR_3_GRIGLIA!$D$3:$D$12,+VLOOKUP(B12,CR_3_GRIGLIA!$A$3:$C$12,3,FALSE),+HLOOKUP(D12,CR_3_GRIGLIA!$D$1:$D$2,2,FALSE))))","v":""},""]
[12,null,{"$f":"+IF(B13=\"\",\"\",VLOOKUP(B13,CR_3_GRIGLIA!$A$3:$B$12,2,FALSE))","v":""},null,null,null,{"$f":"+IF(I13=\"\",\"\",IF(I13=CR_3_GRIGLIA!$C$15,CR_3_GRIGLIA!$B$15,IF(I13=CR_3_GRIGLIA!$C$16,CR_3_GRIGLIA!$B$16,IF(I13=CR_3_GRIGLIA!$C$17,CR_3_GRIGLIA!$B$17,IF(I13=CR_3_GRIGLIA!$C$18,CR_3_GRIGLIA!$B$18,CR_3_GRIGLIA!$B$20)))))","v":""},"",{"$f":"+IF(D13=\"\",\"\",IF(C13=\"\",0,INDEX(CR_3_GRIGLIA!$D$3:$D$12,+VLOOKUP(B13,CR_3_GRIGLIA!$A$3:$C$12,3,FALSE),+HLOOKUP(D13,CR_3_GRIGLIA!$D$1:$D$2,2,FALSE))))","v":""},""]
[13,null,{"$f":"+IF(B14=\"\",\"\",VLOOKUP(B14,CR_3_GRIGLIA!$A$3:$B$12,2,FALSE))","v":""},null,null,null,{"$f":"+IF(I14=\"\",\"\",IF(I14=CR_3_GRIGLIA!$C$15,CR_3_GRIGLIA!$B$15,IF(I14=CR_3_GRIGLIA!$C$16,CR_3_GRIGLIA!$B$16,IF(I14=CR_3_GRIGLIA!$C$17,CR_3_GRIGLIA!$B$17,IF(I14=CR_3_GRIGLIA!$C$18,CR_3_GRIGLIA!$B$18,CR_3_GRIGLIA!$B$20)))))","v":""},"",{"$f":"+IF(D14=\"\",\"\",IF(C14=\"\",0,INDEX(CR_3_GRIGLIA!$D$3:$D$12,+VLOOKUP(B14,CR_3_GRIGLIA!$A$3:$C$12,3,FALSE),+HLOOKUP(D14,CR_3_GRIGLIA!$D$1:$D$2,2,FALSE))))","v":""},""]
[14,null,{"$f":"+IF(B15=\"\",\"\",VLOOKUP(B15,CR_3_GRIGLIA!$A$3:$B$12,2,FALSE))","v":""},null,null,null,{"$f":"+IF(I15=\"\",\"\",IF(I15=CR_3_GRIGLIA!$C$15,CR_3_GRIGLIA!$B$15,IF(I15=CR_3_GRIGLIA!$C$16,CR_3_GRIGLIA!$B$16,IF(I15=CR_3_GRIGLIA!$C$17,CR_3_GRIGLIA!$B$17,IF(I15=CR_3_GRIGLIA!$C$18,CR_3_GRIGLIA!$B$18,CR_3_GRIGLIA!$B$20)))))","v":""},"",{"$f":"+IF(D15=\"\",\"\",IF(C15=\"\",0,INDEX(CR_3_GRIGLIA!$D$3:$D$12,+VLOOKUP(B15,CR_3_GRIGLIA!$A$3:$C$12,3,FALSE),+HLOOKUP(D15,CR_3_GRIGLIA!$D$1:$D$2,2,FALSE))))","v":""},""]
[15,null,{"$f":"+IF(B16=\"\",\"\",VLOOKUP(B16,CR_3_GRIGLIA!$A$3:$B$12,2,FALSE))","v":""},null,null,null,{"$f":"+IF(I16=\"\",\"\",IF(I16=CR_3_GRIGLIA!$C$15,CR_3_GRIGLIA!$B$15,IF(I16=CR_3_GRIGLIA!$C$16,CR_3_GRIGLIA!$B$16,IF(I16=CR_3_GRIGLIA!$C$17,CR_3_GRIGLIA!$B$17,IF(I16=CR_3_GRIGLIA!$C$18,CR_3_GRIGLIA!$B$18,CR_3_GRIGLIA!$B$20)))))","v":""},"",{"$f":"+IF(D16=\"\",\"\",IF(C16=\"\",0,INDEX(CR_3_GRIGLIA!$D$3:$D$12,+VLOOKUP(B16,CR_3_GRIGLIA!$A$3:$C$12,3,FALSE),+HLOOKUP(D16,CR_3_GRIGLIA!$D$1:$D$2,2,FALSE))))","v":""},""]
[16,null,{"$f":"+IF(B17=\"\",\"\",VLOOKUP(B17,CR_3_GRIGLIA!$A$3:$B$12,2,FALSE))","v":""},null,null,null,{"$f":"+IF(I17=\"\",\"\",IF(I17=CR_3_GRIGLIA!$C$15,CR_3_GRIGLIA!$B$15,IF(I17=CR_3_GRIGLIA!$C$16,CR_3_GRIGLIA!$B$16,IF(I17=CR_3_GRIGLIA!$C$17,CR_3_GRIGLIA!$B$17,IF(I17=CR_3_GRIGLIA!$C$18,CR_3_GRIGLIA!$B$18,CR_3_GRIGLIA!$B$20)))))","v":""},"",{"$f":"+IF(D17=\"\",\"\",IF(C17=\"\",0,INDEX(CR_3_GRIGLIA!$D$3:$D$12,+VLOOKUP(B17,CR_3_GRIGLIA!$A$3:$C$12,3,FALSE),+HLOOKUP(D17,CR_3_GRIGLIA!$D$1:$D$2,2,FALSE))))","v":""},""]
[17,null,{"$f":"+IF(B18=\"\",\"\",VLOOKUP(B18,CR_3_GRIGLIA!$A$3:$B$12,2,FALSE))","v":""},null,null,null,{"$f":"+IF(I18=\"\",\"\",IF(I18=CR_3_GRIGLIA!$C$15,CR_3_GRIGLIA!$B$15,IF(I18=CR_3_GRIGLIA!$C$16,CR_3_GRIGLIA!$B$16,IF(I18=CR_3_GRIGLIA!$C$17,CR_3_GRIGLIA!$B$17,IF(I18=CR_3_GRIGLIA!$C$18,CR_3_GRIGLIA!$B$18,CR_3_GRIGLIA!$B$20)))))","v":""},"",{"$f":"+IF(D18=\"\",\"\",IF(C18=\"\",0,INDEX(CR_3_GRIGLIA!$D$3:$D$12,+VLOOKUP(B18,CR_3_GRIGLIA!$A$3:$C$12,3,FALSE),+HLOOKUP(D18,CR_3_GRIGLIA!$D$1:$D$2,2,FALSE))))","v":""},""]
[18,null,{"$f":"+IF(B19=\"\",\"\",VLOOKUP(B19,CR_3_GRIGLIA!$A$3:$B$12,2,FALSE))","v":""},null,null,null,{"$f":"+IF(I19=\"\",\"\",IF(I19=CR_3_GRIGLIA!$C$15,CR_3_GRIGLIA!$B$15,IF(I19=CR_3_GRIGLIA!$C$16,CR_3_GRIGLIA!$B$16,IF(I19=CR_3_GRIGLIA!$C$17,CR_3_GRIGLIA!$B$17,IF(I19=CR_3_GRIGLIA!$C$18,CR_3_GRIGLIA!$B$18,CR_3_GRIGLIA!$B$20)))))","v":""},"",{"$f":"+IF(D19=\"\",\"\",IF(C19=\"\",0,INDEX(CR_3_GRIGLIA!$D$3:$D$12,+VLOOKUP(B19,CR_3_GRIGLIA!$A$3:$C$12,3,FALSE),+HLOOKUP(D19,CR_3_GRIGLIA!$D$1:$D$2,2,FALSE))))","v":""},""]
[19,null,{"$f":"+IF(B20=\"\",\"\",VLOOKUP(B20,CR_3_GRIGLIA!$A$3:$B$12,2,FALSE))","v":""},null,null,null,{"$f":"+IF(I20=\"\",\"\",IF(I20=CR_3_GRIGLIA!$C$15,CR_3_GRIGLIA!$B$15,IF(I20=CR_3_GRIGLIA!$C$16,CR_3_GRIGLIA!$B$16,IF(I20=CR_3_GRIGLIA!$C$17,CR_3_GRIGLIA!$B$17,IF(I20=CR_3_GRIGLIA!$C$18,CR_3_GRIGLIA!$B$18,CR_3_GRIGLIA!$B$20)))))","v":""},"",{"$f":"+IF(D20=\"\",\"\",IF(C20=\"\",0,INDEX(CR_3_GRIGLIA!$D$3:$D$12,+VLOOKUP(B20,CR_3_GRIGLIA!$A$3:$C$12,3,FALSE),+HLOOKUP(D20,CR_3_GRIGLIA!$D$1:$D$2,2,FALSE))))","v":""},""]
[20,null,{"$f":"+IF(B21=\"\",\"\",VLOOKUP(B21,CR_3_GRIGLIA!$A$3:$B$12,2,FALSE))","v":""},null,null,null,{"$f":"+IF(I21=\"\",\"\",IF(I21=CR_3_GRIGLIA!$C$15,CR_3_GRIGLIA!$B$15,IF(I21=CR_3_GRIGLIA!$C$16,CR_3_GRIGLIA!$B$16,IF(I21=CR_3_GRIGLIA!$C$17,CR_3_GRIGLIA!$B$17,IF(I21=CR_3_GRIGLIA!$C$18,CR_3_GRIGLIA!$B$18,CR_3_GRIGLIA!$B$20)))))","v":""},"",{"$f":"+IF(D21=\"\",\"\",IF(C21=\"\",0,INDEX(CR_3_GRIGLIA!$D$3:$D$12,+VLOOKUP(B21,CR_3_GRIGLIA!$A$3:$C$12,3,FALSE),+HLOOKUP(D21,CR_3_GRIGLIA!$D$1:$D$2,2,FALSE))))","v":""},""]
[21,null,{"$f":"+IF(B22=\"\",\"\",VLOOKUP(B22,CR_3_GRIGLIA!$A$3:$B$12,2,FALSE))","v":""},null,null,null,{"$f":"+IF(I22=\"\",\"\",IF(I22=CR_3_GRIGLIA!$C$15,CR_3_GRIGLIA!$B$15,IF(I22=CR_3_GRIGLIA!$C$16,CR_3_GRIGLIA!$B$16,IF(I22=CR_3_GRIGLIA!$C$17,CR_3_GRIGLIA!$B$17,IF(I22=CR_3_GRIGLIA!$C$18,CR_3_GRIGLIA!$B$18,CR_3_GRIGLIA!$B$20)))))","v":""},"",{"$f":"+IF(D22=\"\",\"\",IF(C22=\"\",0,INDEX(CR_3_GRIGLIA!$D$3:$D$12,+VLOOKUP(B22,CR_3_GRIGLIA!$A$3:$C$12,3,FALSE),+HLOOKUP(D22,CR_3_GRIGLIA!$D$1:$D$2,2,FALSE))))","v":""},""]
[22,null,{"$f":"+IF(B23=\"\",\"\",VLOOKUP(B23,CR_3_GRIGLIA!$A$3:$B$12,2,FALSE))","v":""},null,null,null,{"$f":"+IF(I23=\"\",\"\",IF(I23=CR_3_GRIGLIA!$C$15,CR_3_GRIGLIA!$B$15,IF(I23=CR_3_GRIGLIA!$C$16,CR_3_GRIGLIA!$B$16,IF(I23=CR_3_GRIGLIA!$C$17,CR_3_GRIGLIA!$B$17,IF(I23=CR_3_GRIGLIA!$C$18,CR_3_GRIGLIA!$B$18,CR_3_GRIGLIA!$B$20)))))","v":""},"",{"$f":"+IF(D23=\"\",\"\",IF(C23=\"\",0,INDEX(CR_3_GRIGLIA!$D$3:$D$12,+VLOOKUP(B23,CR_3_GRIGLIA!$A$3:$C$12,3,FALSE),+HLOOKUP(D23,CR_3_GRIGLIA!$D$1:$D$2,2,FALSE))))","v":""},""]
[23,null,{"$f":"+IF(B24=\"\",\"\",VLOOKUP(B24,CR_3_GRIGLIA!$A$3:$B$12,2,FALSE))","v":""},null,null,null,{"$f":"+IF(I24=\"\",\"\",IF(I24=CR_3_GRIGLIA!$C$15,CR_3_GRIGLIA!$B$15,IF(I24=CR_3_GRIGLIA!$C$16,CR_3_GRIGLIA!$B$16,IF(I24=CR_3_GRIGLIA!$C$17,CR_3_GRIGLIA!$B$17,IF(I24=CR_3_GRIGLIA!$C$18,CR_3_GRIGLIA!$B$18,CR_3_GRIGLIA!$B$20)))))","v":""},"",{"$f":"+IF(D24=\"\",\"\",IF(C24=\"\",0,INDEX(CR_3_GRIGLIA!$D$3:$D$12,+VLOOKUP(B24,CR_3_GRIGLIA!$A$3:$C$12,3,FALSE),+HLOOKUP(D24,CR_3_GRIGLIA!$D$1:$D$2,2,FALSE))))","v":""},""]
[24,null,{"$f":"+IF(B25=\"\",\"\",VLOOKUP(B25,CR_3_GRIGLIA!$A$3:$B$12,2,FALSE))","v":""},null,null,null,{"$f":"+IF(I25=\"\",\"\",IF(I25=CR_3_GRIGLIA!$C$15,CR_3_GRIGLIA!$B$15,IF(I25=CR_3_GRIGLIA!$C$16,CR_3_GRIGLIA!$B$16,IF(I25=CR_3_GRIGLIA!$C$17,CR_3_GRIGLIA!$B$17,IF(I25=CR_3_GRIGLIA!$C$18,CR_3_GRIGLIA!$B$18,CR_3_GRIGLIA!$B$20)))))","v":""},"",{"$f":"+IF(D25=\"\",\"\",IF(C25=\"\",0,INDEX(CR_3_GRIGLIA!$D$3:$D$12,+VLOOKUP(B25,CR_3_GRIGLIA!$A$3:$C$12,3,FALSE),+HLOOKUP(D25,CR_3_GRIGLIA!$D$1:$D$2,2,FALSE))))","v":""},""]
[25,null,{"$f":"+IF(B26=\"\",\"\",VLOOKUP(B26,CR_3_GRIGLIA!$A$3:$B$12,2,FALSE))","v":""},null,null,null,{"$f":"+IF(I26=\"\",\"\",IF(I26=CR_3_GRIGLIA!$C$15,CR_3_GRIGLIA!$B$15,IF(I26=CR_3_GRIGLIA!$C$16,CR_3_GRIGLIA!$B$16,IF(I26=CR_3_GRIGLIA!$C$17,CR_3_GRIGLIA!$B$17,IF(I26=CR_3_GRIGLIA!$C$18,CR_3_GRIGLIA!$B$18,CR_3_GRIGLIA!$B$20)))))","v":""},"",{"$f":"+IF(D26=\"\",\"\",IF(C26=\"\",0,INDEX(CR_3_GRIGLIA!$D$3:$D$12,+VLOOKUP(B26,CR_3_GRIGLIA!$A$3:$C$12,3,FALSE),+HLOOKUP(D26,CR_3_GRIGLIA!$D$1:$D$2,2,FALSE))))","v":""},""]
[26,null,{"$f":"+IF(B27=\"\",\"\",VLOOKUP(B27,CR_3_GRIGLIA!$A$3:$B$12,2,FALSE))","v":""},null,null,null,{"$f":"+IF(I27=\"\",\"\",IF(I27=CR_3_GRIGLIA!$C$15,CR_3_GRIGLIA!$B$15,IF(I27=CR_3_GRIGLIA!$C$16,CR_3_GRIGLIA!$B$16,IF(I27=CR_3_GRIGLIA!$C$17,CR_3_GRIGLIA!$B$17,IF(I27=CR_3_GRIGLIA!$C$18,CR_3_GRIGLIA!$B$18,CR_3_GRIGLIA!$B$20)))))","v":""},"",{"$f":"+IF(D27=\"\",\"\",IF(C27=\"\",0,INDEX(CR_3_GRIGLIA!$D$3:$D$12,+VLOOKUP(B27,CR_3_GRIGLIA!$A$3:$C$12,3,FALSE),+HLOOKUP(D27,CR_3_GRIGLIA!$D$1:$D$2,2,FALSE))))","v":""},""]
[27,null,{"$f":"+IF(B28=\"\",\"\",VLOOKUP(B28,CR_3_GRIGLIA!$A$3:$B$12,2,FALSE))","v":""},null,null,null,{"$f":"+IF(I28=\"\",\"\",IF(I28=CR_3_GRIGLIA!$C$15,CR_3_GRIGLIA!$B$15,IF(I28=CR_3_GRIGLIA!$C$16,CR_3_GRIGLIA!$B$16,IF(I28=CR_3_GRIGLIA!$C$17,CR_3_GRIGLIA!$B$17,IF(I28=CR_3_GRIGLIA!$C$18,CR_3_GRIGLIA!$B$18,CR_3_GRIGLIA!$B$20)))))","v":""},"",{"$f":"+IF(D28=\"\",\"\",IF(C28=\"\",0,INDEX(CR_3_GRIGLIA!$D$3:$D$12,+VLOOKUP(B28,CR_3_GRIGLIA!$A$3:$C$12,3,FALSE),+HLOOKUP(D28,CR_3_GRIGLIA!$D$1:$D$2,2,FALSE))))","v":""},""]
[28,null,{"$f":"+IF(B29=\"\",\"\",VLOOKUP(B29,CR_3_GRIGLIA!$A$3:$B$12,2,FALSE))","v":""},null,null,null,{"$f":"+IF(I29=\"\",\"\",IF(I29=CR_3_GRIGLIA!$C$15,CR_3_GRIGLIA!$B$15,IF(I29=CR_3_GRIGLIA!$C$16,CR_3_GRIGLIA!$B$16,IF(I29=CR_3_GRIGLIA!$C$17,CR_3_GRIGLIA!$B$17,IF(I29=CR_3_GRIGLIA!$C$18,CR_3_GRIGLIA!$B$18,CR_3_GRIGLIA!$B$20)))))","v":""},"",{"$f":"+IF(D29=\"\",\"\",IF(C29=\"\",0,INDEX(CR_3_GRIGLIA!$D$3:$D$12,+VLOOKUP(B29,CR_3_GRIGLIA!$A$3:$C$12,3,FALSE),+HLOOKUP(D29,CR_3_GRIGLIA!$D$1:$D$2,2,FALSE))))","v":""},""]
[29,null,{"$f":"+IF(B30=\"\",\"\",VLOOKUP(B30,CR_3_GRIGLIA!$A$3:$B$12,2,FALSE))","v":""},null,null,null,{"$f":"+IF(I30=\"\",\"\",IF(I30=CR_3_GRIGLIA!$C$15,CR_3_GRIGLIA!$B$15,IF(I30=CR_3_GRIGLIA!$C$16,CR_3_GRIGLIA!$B$16,IF(I30=CR_3_GRIGLIA!$C$17,CR_3_GRIGLIA!$B$17,IF(I30=CR_3_GRIGLIA!$C$18,CR_3_GRIGLIA!$B$18,CR_3_GRIGLIA!$B$20)))))","v":""},"",{"$f":"+IF(D30=\"\",\"\",IF(C30=\"\",0,INDEX(CR_3_GRIGLIA!$D$3:$D$12,+VLOOKUP(B30,CR_3_GRIGLIA!$A$3:$C$12,3,FALSE),+HLOOKUP(D30,CR_3_GRIGLIA!$D$1:$D$2,2,FALSE))))","v":""},""]
[30,null,{"$f":"+IF(B31=\"\",\"\",VLOOKUP(B31,CR_3_GRIGLIA!$A$3:$B$12,2,FALSE))","v":""},null,null,null,{"$f":"+IF(I31=\"\",\"\",IF(I31=CR_3_GRIGLIA!$C$15,CR_3_GRIGLIA!$B$15,IF(I31=CR_3_GRIGLIA!$C$16,CR_3_GRIGLIA!$B$16,IF(I31=CR_3_GRIGLIA!$C$17,CR_3_GRIGLIA!$B$17,IF(I31=CR_3_GRIGLIA!$C$18,CR_3_GRIGLIA!$B$18,CR_3_GRIGLIA!$B$20)))))","v":""},"",{"$f":"+IF(D31=\"\",\"\",IF(C31=\"\",0,INDEX(CR_3_GRIGLIA!$D$3:$D$12,+VLOOKUP(B31,CR_3_GRIGLIA!$A$3:$C$12,3,FALSE),+HLOOKUP(D31,CR_3_GRIGLIA!$D$1:$D$2,2,FALSE))))","v":""},""]
[31,null,{"$f":"+IF(B32=\"\",\"\",VLOOKUP(B32,CR_3_GRIGLIA!$A$3:$B$12,2,FALSE))","v":""},null,null,null,{"$f":"+IF(I32=\"\",\"\",IF(I32=CR_3_GRIGLIA!$C$15,CR_3_GRIGLIA!$B$15,IF(I32=CR_3_GRIGLIA!$C$16,CR_3_GRIGLIA!$B$16,IF(I32=CR_3_GRIGLIA!$C$17,CR_3_GRIGLIA!$B$17,IF(I32=CR_3_GRIGLIA!$C$18,CR_3_GRIGLIA!$B$18,CR_3_GRIGLIA!$B$20)))))","v":""},"",{"$f":"+IF(D32=\"\",\"\",IF(C32=\"\",0,INDEX(CR_3_GRIGLIA!$D$3:$D$12,+VLOOKUP(B32,CR_3_GRIGLIA!$A$3:$C$12,3,FALSE),+HLOOKUP(D32,CR_3_GRIGLIA!$D$1:$D$2,2,FALSE))))","v":""},""]
[32,null,{"$f":"+IF(B33=\"\",\"\",VLOOKUP(B33,CR_3_GRIGLIA!$A$3:$B$12,2,FALSE))","v":""},null,null,null,{"$f":"+IF(I33=\"\",\"\",IF(I33=CR_3_GRIGLIA!$C$15,CR_3_GRIGLIA!$B$15,IF(I33=CR_3_GRIGLIA!$C$16,CR_3_GRIGLIA!$B$16,IF(I33=CR_3_GRIGLIA!$C$17,CR_3_GRIGLIA!$B$17,IF(I33=CR_3_GRIGLIA!$C$18,CR_3_GRIGLIA!$B$18,CR_3_GRIGLIA!$B$20)))))","v":""},"",{"$f":"+IF(D33=\"\",\"\",IF(C33=\"\",0,INDEX(CR_3_GRIGLIA!$D$3:$D$12,+VLOOKUP(B33,CR_3_GRIGLIA!$A$3:$C$12,3,FALSE),+HLOOKUP(D33,CR_3_GRIGLIA!$D$1:$D$2,2,FALSE))))","v":""},""]
[33,null,{"$f":"+IF(B34=\"\",\"\",VLOOKUP(B34,CR_3_GRIGLIA!$A$3:$B$12,2,FALSE))","v":""},null,null,null,{"$f":"+IF(I34=\"\",\"\",IF(I34=CR_3_GRIGLIA!$C$15,CR_3_GRIGLIA!$B$15,IF(I34=CR_3_GRIGLIA!$C$16,CR_3_GRIGLIA!$B$16,IF(I34=CR_3_GRIGLIA!$C$17,CR_3_GRIGLIA!$B$17,IF(I34=CR_3_GRIGLIA!$C$18,CR_3_GRIGLIA!$B$18,CR_3_GRIGLIA!$B$20)))))","v":""},"",{"$f":"+IF(D34=\"\",\"\",IF(C34=\"\",0,INDEX(CR_3_GRIGLIA!$D$3:$D$12,+VLOOKUP(B34,CR_3_GRIGLIA!$A$3:$C$12,3,FALSE),+HLOOKUP(D34,CR_3_GRIGLIA!$D$1:$D$2,2,FALSE))))","v":""},""]
[34,null,{"$f":"+IF(B35=\"\",\"\",VLOOKUP(B35,CR_3_GRIGLIA!$A$3:$B$12,2,FALSE))","v":""},null,null,null,{"$f":"+IF(I35=\"\",\"\",IF(I35=CR_3_GRIGLIA!$C$15,CR_3_GRIGLIA!$B$15,IF(I35=CR_3_GRIGLIA!$C$16,CR_3_GRIGLIA!$B$16,IF(I35=CR_3_GRIGLIA!$C$17,CR_3_GRIGLIA!$B$17,IF(I35=CR_3_GRIGLIA!$C$18,CR_3_GRIGLIA!$B$18,CR_3_GRIGLIA!$B$20)))))","v":""},"",{"$f":"+IF(D35=\"\",\"\",IF(C35=\"\",0,INDEX(CR_3_GRIGLIA!$D$3:$D$12,+VLOOKUP(B35,CR_3_GRIGLIA!$A$3:$C$12,3,FALSE),+HLOOKUP(D35,CR_3_GRIGLIA!$D$1:$D$2,2,FALSE))))","v":""},""]
[35,null,{"$f":"+IF(B36=\"\",\"\",VLOOKUP(B36,CR_3_GRIGLIA!$A$3:$B$12,2,FALSE))","v":""},null,null,null,{"$f":"+IF(I36=\"\",\"\",IF(I36=CR_3_GRIGLIA!$C$15,CR_3_GRIGLIA!$B$15,IF(I36=CR_3_GRIGLIA!$C$16,CR_3_GRIGLIA!$B$16,IF(I36=CR_3_GRIGLIA!$C$17,CR_3_GRIGLIA!$B$17,IF(I36=CR_3_GRIGLIA!$C$18,CR_3_GRIGLIA!$B$18,CR_3_GRIGLIA!$B$20)))))","v":""},"",{"$f":"+IF(D36=\"\",\"\",IF(C36=\"\",0,INDEX(CR_3_GRIGLIA!$D$3:$D$12,+VLOOKUP(B36,CR_3_GRIGLIA!$A$3:$C$12,3,FALSE),+HLOOKUP(D36,CR_3_GRIGLIA!$D$1:$D$2,2,FALSE))))","v":""},""]
[36,null,{"$f":"+IF(B37=\"\",\"\",VLOOKUP(B37,CR_3_GRIGLIA!$A$3:$B$12,2,FALSE))","v":""},null,null,null,{"$f":"+IF(I37=\"\",\"\",IF(I37=CR_3_GRIGLIA!$C$15,CR_3_GRIGLIA!$B$15,IF(I37=CR_3_GRIGLIA!$C$16,CR_3_GRIGLIA!$B$16,IF(I37=CR_3_GRIGLIA!$C$17,CR_3_GRIGLIA!$B$17,IF(I37=CR_3_GRIGLIA!$C$18,CR_3_GRIGLIA!$B$18,CR_3_GRIGLIA!$B$20)))))","v":""},"",{"$f":"+IF(D37=\"\",\"\",IF(C37=\"\",0,INDEX(CR_3_GRIGLIA!$D$3:$D$12,+VLOOKUP(B37,CR_3_GRIGLIA!$A$3:$C$12,3,FALSE),+HLOOKUP(D37,CR_3_GRIGLIA!$D$1:$D$2,2,FALSE))))","v":""},""]
[37,null,{"$f":"+IF(B38=\"\",\"\",VLOOKUP(B38,CR_3_GRIGLIA!$A$3:$B$12,2,FALSE))","v":""},null,null,null,{"$f":"+IF(I38=\"\",\"\",IF(I38=CR_3_GRIGLIA!$C$15,CR_3_GRIGLIA!$B$15,IF(I38=CR_3_GRIGLIA!$C$16,CR_3_GRIGLIA!$B$16,IF(I38=CR_3_GRIGLIA!$C$17,CR_3_GRIGLIA!$B$17,IF(I38=CR_3_GRIGLIA!$C$18,CR_3_GRIGLIA!$B$18,CR_3_GRIGLIA!$B$20)))))","v":""},"",{"$f":"+IF(D38=\"\",\"\",IF(C38=\"\",0,INDEX(CR_3_GRIGLIA!$D$3:$D$12,+VLOOKUP(B38,CR_3_GRIGLIA!$A$3:$C$12,3,FALSE),+HLOOKUP(D38,CR_3_GRIGLIA!$D$1:$D$2,2,FALSE))))","v":""},""]
[38,null,{"$f":"+IF(B39=\"\",\"\",VLOOKUP(B39,CR_3_GRIGLIA!$A$3:$B$12,2,FALSE))","v":""},null,null,null,{"$f":"+IF(I39=\"\",\"\",IF(I39=CR_3_GRIGLIA!$C$15,CR_3_GRIGLIA!$B$15,IF(I39=CR_3_GRIGLIA!$C$16,CR_3_GRIGLIA!$B$16,IF(I39=CR_3_GRIGLIA!$C$17,CR_3_GRIGLIA!$B$17,IF(I39=CR_3_GRIGLIA!$C$18,CR_3_GRIGLIA!$B$18,CR_3_GRIGLIA!$B$20)))))","v":""},"",{"$f":"+IF(D39=\"\",\"\",IF(C39=\"\",0,INDEX(CR_3_GRIGLIA!$D$3:$D$12,+VLOOKUP(B39,CR_3_GRIGLIA!$A$3:$C$12,3,FALSE),+HLOOKUP(D39,CR_3_GRIGLIA!$D$1:$D$2,2,FALSE))))","v":""},""]
[39,null,{"$f":"+IF(B40=\"\",\"\",VLOOKUP(B40,CR_3_GRIGLIA!$A$3:$B$12,2,FALSE))","v":""},null,null,null,{"$f":"+IF(I40=\"\",\"\",IF(I40=CR_3_GRIGLIA!$C$15,CR_3_GRIGLIA!$B$15,IF(I40=CR_3_GRIGLIA!$C$16,CR_3_GRIGLIA!$B$16,IF(I40=CR_3_GRIGLIA!$C$17,CR_3_GRIGLIA!$B$17,IF(I40=CR_3_GRIGLIA!$C$18,CR_3_GRIGLIA!$B$18,CR_3_GRIGLIA!$B$20)))))","v":""},"",{"$f":"+IF(D40=\"\",\"\",IF(C40=\"\",0,INDEX(CR_3_GRIGLIA!$D$3:$D$12,+VLOOKUP(B40,CR_3_GRIGLIA!$A$3:$C$12,3,FALSE),+HLOOKUP(D40,CR_3_GRIGLIA!$D$1:$D$2,2,FALSE))))","v":""},""]
[40,null,{"$f":"+IF(B41=\"\",\"\",VLOOKUP(B41,CR_3_GRIGLIA!$A$3:$B$12,2,FALSE))","v":""},null,null,null,{"$f":"+IF(I41=\"\",\"\",IF(I41=CR_3_GRIGLIA!$C$15,CR_3_GRIGLIA!$B$15,IF(I41=CR_3_GRIGLIA!$C$16,CR_3_GRIGLIA!$B$16,IF(I41=CR_3_GRIGLIA!$C$17,CR_3_GRIGLIA!$B$17,IF(I41=CR_3_GRIGLIA!$C$18,CR_3_GRIGLIA!$B$18,CR_3_GRIGLIA!$B$20)))))","v":""},"",{"$f":"+IF(D41=\"\",\"\",IF(C41=\"\",0,INDEX(CR_3_GRIGLIA!$D$3:$D$12,+VLOOKUP(B41,CR_3_GRIGLIA!$A$3:$C$12,3,FALSE),+HLOOKUP(D41,CR_3_GRIGLIA!$D$1:$D$2,2,FALSE))))","v":""},""]
[41,null,{"$f":"+IF(B42=\"\",\"\",VLOOKUP(B42,CR_3_GRIGLIA!$A$3:$B$12,2,FALSE))","v":""},null,null,null,{"$f":"+IF(I42=\"\",\"\",IF(I42=CR_3_GRIGLIA!$C$15,CR_3_GRIGLIA!$B$15,IF(I42=CR_3_GRIGLIA!$C$16,CR_3_GRIGLIA!$B$16,IF(I42=CR_3_GRIGLIA!$C$17,CR_3_GRIGLIA!$B$17,IF(I42=CR_3_GRIGLIA!$C$18,CR_3_GRIGLIA!$B$18,CR_3_GRIGLIA!$B$20)))))","v":""},"",{"$f":"+IF(D42=\"\",\"\",IF(C42=\"\",0,INDEX(CR_3_GRIGLIA!$D$3:$D$12,+VLOOKUP(B42,CR_3_GRIGLIA!$A$3:$C$12,3,FALSE),+HLOOKUP(D42,CR_3_GRIGLIA!$D$1:$D$2,2,FALSE))))","v":""},""]
[42,null,{"$f":"+IF(B43=\"\",\"\",VLOOKUP(B43,CR_3_GRIGLIA!$A$3:$B$12,2,FALSE))","v":""},null,null,null,{"$f":"+IF(I43=\"\",\"\",IF(I43=CR_3_GRIGLIA!$C$15,CR_3_GRIGLIA!$B$15,IF(I43=CR_3_GRIGLIA!$C$16,CR_3_GRIGLIA!$B$16,IF(I43=CR_3_GRIGLIA!$C$17,CR_3_GRIGLIA!$B$17,IF(I43=CR_3_GRIGLIA!$C$18,CR_3_GRIGLIA!$B$18,CR_3_GRIGLIA!$B$20)))))","v":""},"",{"$f":"+IF(D43=\"\",\"\",IF(C43=\"\",0,INDEX(CR_3_GRIGLIA!$D$3:$D$12,+VLOOKUP(B43,CR_3_GRIGLIA!$A$3:$C$12,3,FALSE),+HLOOKUP(D43,CR_3_GRIGLIA!$D$1:$D$2,2,FALSE))))","v":""},""]
[43,null,{"$f":"+IF(B44=\"\",\"\",VLOOKUP(B44,CR_3_GRIGLIA!$A$3:$B$12,2,FALSE))","v":""},null,null,null,{"$f":"+IF(I44=\"\",\"\",IF(I44=CR_3_GRIGLIA!$C$15,CR_3_GRIGLIA!$B$15,IF(I44=CR_3_GRIGLIA!$C$16,CR_3_GRIGLIA!$B$16,IF(I44=CR_3_GRIGLIA!$C$17,CR_3_GRIGLIA!$B$17,IF(I44=CR_3_GRIGLIA!$C$18,CR_3_GRIGLIA!$B$18,CR_3_GRIGLIA!$B$20)))))","v":""},"",{"$f":"+IF(D44=\"\",\"\",IF(C44=\"\",0,INDEX(CR_3_GRIGLIA!$D$3:$D$12,+VLOOKUP(B44,CR_3_GRIGLIA!$A$3:$C$12,3,FALSE),+HLOOKUP(D44,CR_3_GRIGLIA!$D$1:$D$2,2,FALSE))))","v":""},""]
[44,null,{"$f":"+IF(B45=\"\",\"\",VLOOKUP(B45,CR_3_GRIGLIA!$A$3:$B$12,2,FALSE))","v":""},null,null,null,{"$f":"+IF(I45=\"\",\"\",IF(I45=CR_3_GRIGLIA!$C$15,CR_3_GRIGLIA!$B$15,IF(I45=CR_3_GRIGLIA!$C$16,CR_3_GRIGLIA!$B$16,IF(I45=CR_3_GRIGLIA!$C$17,CR_3_GRIGLIA!$B$17,IF(I45=CR_3_GRIGLIA!$C$18,CR_3_GRIGLIA!$B$18,CR_3_GRIGLIA!$B$20)))))","v":""},"",{"$f":"+IF(D45=\"\",\"\",IF(C45=\"\",0,INDEX(CR_3_GRIGLIA!$D$3:$D$12,+VLOOKUP(B45,CR_3_GRIGLIA!$A$3:$C$12,3,FALSE),+HLOOKUP(D45,CR_3_GRIGLIA!$D$1:$D$2,2,FALSE))))","v":""},""]
[45,null,{"$f":"+IF(B46=\"\",\"\",VLOOKUP(B46,CR_3_GRIGLIA!$A$3:$B$12,2,FALSE))","v":""},null,null,null,{"$f":"+IF(I46=\"\",\"\",IF(I46=CR_3_GRIGLIA!$C$15,CR_3_GRIGLIA!$B$15,IF(I46=CR_3_GRIGLIA!$C$16,CR_3_GRIGLIA!$B$16,IF(I46=CR_3_GRIGLIA!$C$17,CR_3_GRIGLIA!$B$17,IF(I46=CR_3_GRIGLIA!$C$18,CR_3_GRIGLIA!$B$18,CR_3_GRIGLIA!$B$20)))))","v":""},"",{"$f":"+IF(D46=\"\",\"\",IF(C46=\"\",0,INDEX(CR_3_GRIGLIA!$D$3:$D$12,+VLOOKUP(B46,CR_3_GRIGLIA!$A$3:$C$12,3,FALSE),+HLOOKUP(D46,CR_3_GRIGLIA!$D$1:$D$2,2,FALSE))))","v":""},""]
[46,null,{"$f":"+IF(B47=\"\",\"\",VLOOKUP(B47,CR_3_GRIGLIA!$A$3:$B$12,2,FALSE))","v":""},null,null,null,{"$f":"+IF(I47=\"\",\"\",IF(I47=CR_3_GRIGLIA!$C$15,CR_3_GRIGLIA!$B$15,IF(I47=CR_3_GRIGLIA!$C$16,CR_3_GRIGLIA!$B$16,IF(I47=CR_3_GRIGLIA!$C$17,CR_3_GRIGLIA!$B$17,IF(I47=CR_3_GRIGLIA!$C$18,CR_3_GRIGLIA!$B$18,CR_3_GRIGLIA!$B$20)))))","v":""},"",{"$f":"+IF(D47=\"\",\"\",IF(C47=\"\",0,INDEX(CR_3_GRIGLIA!$D$3:$D$12,+VLOOKUP(B47,CR_3_GRIGLIA!$A$3:$C$12,3,FALSE),+HLOOKUP(D47,CR_3_GRIGLIA!$D$1:$D$2,2,FALSE))))","v":""},""]
[47,null,{"$f":"+IF(B48=\"\",\"\",VLOOKUP(B48,CR_3_GRIGLIA!$A$3:$B$12,2,FALSE))","v":""},null,null,null,{"$f":"+IF(I48=\"\",\"\",IF(I48=CR_3_GRIGLIA!$C$15,CR_3_GRIGLIA!$B$15,IF(I48=CR_3_GRIGLIA!$C$16,CR_3_GRIGLIA!$B$16,IF(I48=CR_3_GRIGLIA!$C$17,CR_3_GRIGLIA!$B$17,IF(I48=CR_3_GRIGLIA!$C$18,CR_3_GRIGLIA!$B$18,CR_3_GRIGLIA!$B$20)))))","v":""},"",{"$f":"+IF(D48=\"\",\"\",IF(C48=\"\",0,INDEX(CR_3_GRIGLIA!$D$3:$D$12,+VLOOKUP(B48,CR_3_GRIGLIA!$A$3:$C$12,3,FALSE),+HLOOKUP(D48,CR_3_GRIGLIA!$D$1:$D$2,2,FALSE))))","v":""},""]
[48,null,{"$f":"+IF(B49=\"\",\"\",VLOOKUP(B49,CR_3_GRIGLIA!$A$3:$B$12,2,FALSE))","v":""},null,null,null,{"$f":"+IF(I49=\"\",\"\",IF(I49=CR_3_GRIGLIA!$C$15,CR_3_GRIGLIA!$B$15,IF(I49=CR_3_GRIGLIA!$C$16,CR_3_GRIGLIA!$B$16,IF(I49=CR_3_GRIGLIA!$C$17,CR_3_GRIGLIA!$B$17,IF(I49=CR_3_GRIGLIA!$C$18,CR_3_GRIGLIA!$B$18,CR_3_GRIGLIA!$B$20)))))","v":""},"",{"$f":"+IF(D49=\"\",\"\",IF(C49=\"\",0,INDEX(CR_3_GRIGLIA!$D$3:$D$12,+VLOOKUP(B49,CR_3_GRIGLIA!$A$3:$C$12,3,FALSE),+HLOOKUP(D49,CR_3_GRIGLIA!$D$1:$D$2,2,FALSE))))","v":""},""]
[49,null,{"$f":"+IF(B50=\"\",\"\",VLOOKUP(B50,CR_3_GRIGLIA!$A$3:$B$12,2,FALSE))","v":""},null,null,null,{"$f":"+IF(I50=\"\",\"\",IF(I50=CR_3_GRIGLIA!$C$15,CR_3_GRIGLIA!$B$15,IF(I50=CR_3_GRIGLIA!$C$16,CR_3_GRIGLIA!$B$16,IF(I50=CR_3_GRIGLIA!$C$17,CR_3_GRIGLIA!$B$17,IF(I50=CR_3_GRIGLIA!$C$18,CR_3_GRIGLIA!$B$18,CR_3_GRIGLIA!$B$20)))))","v":""},"",{"$f":"+IF(D50=\"\",\"\",IF(C50=\"\",0,INDEX(CR_3_GRIGLIA!$D$3:$D$12,+VLOOKUP(B50,CR_3_GRIGLIA!$A$3:$C$12,3,FALSE),+HLOOKUP(D50,CR_3_GRIGLIA!$D$1:$D$2,2,FALSE))))","v":""},""]
[50,null,{"$f":"+IF(B51=\"\",\"\",VLOOKUP(B51,CR_3_GRIGLIA!$A$3:$B$12,2,FALSE))","v":""},null,null,null,{"$f":"+IF(I51=\"\",\"\",IF(I51=CR_3_GRIGLIA!$C$15,CR_3_GRIGLIA!$B$15,IF(I51=CR_3_GRIGLIA!$C$16,CR_3_GRIGLIA!$B$16,IF(I51=CR_3_GRIGLIA!$C$17,CR_3_GRIGLIA!$B$17,IF(I51=CR_3_GRIGLIA!$C$18,CR_3_GRIGLIA!$B$18,CR_3_GRIGLIA!$B$20)))))","v":""},"",{"$f":"+IF(D51=\"\",\"\",IF(C51=\"\",0,INDEX(CR_3_GRIGLIA!$D$3:$D$12,+VLOOKUP(B51,CR_3_GRIGLIA!$A$3:$C$12,3,FALSE),+HLOOKUP(D51,CR_3_GRIGLIA!$D$1:$D$2,2,FALSE))))","v":""},""]
[]
["Importo Parziale",null,null,null,null,{"$f":"+SUBTOTAL(9,F2:F51)","v":0},null,null,null,{"$f":"+SUBTOTAL(9,J2:J51)","v":0}]
[]
["Totale investimento",null,null,null,null,{"$f":"+SUM(F2:F51)","v":0}]

{"sheet":"Calcolo_Punteggio","index":3,"n_rows":60,"n_cols":20,"rows_kept":60,"cut":false,"hidden":false,"merged":[[1,1,1,2],[1,3,2,3],[1,4,2,4]]}
[null,"Settore",null,null,null,null,null,null,null,null,null,null,null,null,null,null,null,null,null,1]
[null,"(vuoto)",null,"Valore totale","Punteggio totale",null,null,null,null,null,null,null,null,null,null,null,null,null,null,2]
["Investimento","Valore","Punteggio",null,null,null,null,null,null,null,null,null,null,null,null,null,null,null,null,3]
[null,null,0,null,0,null,null,null,null,null,null,null,null,null,null,null,null,null,null,4]
[null,null,0,null,0,null,null,null,null,null,null,null,null,null,null,null,null,null,null,5]
["Totale complessivo",null,0,null,0,null,null,null,null,null,null,null,null,null,null,null,null,null,null,6]
[null,null,null,null,null,null,null,null,null,null,null,null,null,null,null,null,null,null,null,7]
[null,null,null,null,null,null,null,null,null,null,null,null,null,null,null,null,null,null,null,8]
[null,null,null,null,null,null,null,null,null,null,null,null,null,null,null,null,null,null,null,9]
[null,null,null,null,null,null,null,null,null,null,null,null,null,null,null,null,null,null,null,10]
[null,null,null,null,null,null,null,null,null,null,null,null,null,null,null,null,null,null,null,11]
[null,null,null,null,null,null,null,null,null,null,null,null,null,null,null,null,null,null,null,12]
[null,null,null,null,null,null,null,null,null,null,null,null,null,null,null,null,null,null,null,13]
[null,null,null,null,null,null,null,null,null,null,null,null,null,null,null,null,null,null,null,14]
[null,null,null,null,null,null,null,null,null,null,null,null,null,null,null,null,null,null,null,15]
[null,null,null,null,null,null,null,null,null,null,null,null,null,null,null,null,null,null,null,16]
[null,null,null,null,null,null,null,null,null,null,null,null,null,null,null,null,null,null,null,17]
[null,null,null,null,null,null,null,null,null,null,null,null,null,null,null,null,null,null,null,18]
[null,null,null,null,null,null,null,null,null,null,null,null,null,null,null,null,null,null,null,19]
[null,null,null,null,null,null,null,null,null,null,null,null,null,null,null,null,null,null,null,20]
[null,null,null,null,null,null,null,null,null,null,null,null,null,null,null,null,null,null,null,21]
[null,null,null,null,null,null,null,null,null,null,null,null,null,null,null,null,null,null,null,22]
[null,null,null,null,null,null,null,null,null,null,null,null,null,null,null,null,null,null,null,23]
[null,null,null,null,null,null,null,null,null,null,null,null,null,null,null,null,null,null,null,24]
[null,null,null,null,null,null,null,null,null,null,null,null,null,null,null,null,null,null,null,25]
[null,null,null,null,null,null,null,null,null,null,null,null,null,null,null,null,null,null,null,26]
[null,null,null,null,null,null,null,null,null,null,null,null,null,null,null,null,null,null,null,27]
[null,null,null,null,null,null,null,null,null,null,null,null,null,null,null,null,null,null,null,28]
[null,null,null,null,null,null,null,null,null,null,null,null,null,null,null,null,null,null,null,29]
[null,null,null,null,null,null,null,null,null,null,null,null,null,null,null,null,null,null,null,30]
[null,null,null,null,null,null,null,null,null,null,null,null,null,null,null,null,null,null,null,31]
[null,null,null,null,null,null,null,null,null,null,null,null,null,null,null,null,null,null,null,32]
[null,null,null,null,null,null,null,null,null,null,null,null,null,null,null,null,null,null,null,33]
[null,null,null,null,null,null,null,null,null,null,null,null,null,null,null,null,null,null,null,34]
[null,null,null,null,null,null,null,null,null,null,null,null,null,null,null,null,null,null,null,35]
[null,null,null,null,null,null,null,null,null,null,null,null,null,null,null,null,null,null,null,36]
[null,null,null,null,null,null,null,null,null,null,null,null,null,null,null,null,null,null,null,37]
[null,null,null,null,null,null,null,null,null,null,null,null,null,null,null,null,null,null,null,38]
[null,null,null,null,null,null,null,null,null,null,null,null,null,null,null,null,null,null,null,39]
[null,null,null,null,null,null,null,null,null,null,null,null,null,null,null,null,null,null,null,40]
[null,null,null,null,null,null,null,null,null,null,null,null,null,null,null,null,null,null,null,41]
[null,null,null,null,null,null,null,null,null,null,null,null,null,null,null,null,null,null,null,42]
[null,null,null,null,null,null,null,null,null,null,null,null,null,null,null,null,null,null,null,43]
[null,null,null,null,null,null,null,null,null,null,null,null,null,null,null,null,null,null,null,44]
[null,null,null,null,null,null,null,null,null,null,null,null,null,null,null,null,null,null,null,45]
[null,null,null,null,null,null,null,null,null,null,null,null,null,null,null,null,null,null,null,46]
[null,null,null,null,null,null,null,null,null,null,null,null,null,null,null,null,null,null,null,47]
[null,null,null,null,null,null,null,null,null,null,null,null,null,null,null,null,null,null,null,48]
[null,null,null,null,null,null,null,null,null,null,null,null,null,null,null,null,null,null,null,49]
[null,null,null,null,null,null,null,null,null,null,null,null,null,null,null,null,null,null,null,50]
[null,null,null,null,null,null,null,null,null,null,null,null,null,null,null,null,null,null,null,51]
[null,null,null,null,null,null,null,null,null,null,null,null,null,null,null,null,null,null,null,52]
[null,null,null,null,null,null,null,null,null,null,null,null,null,null,null,null,null,null,null,53]
[null,null,null,null,null,null,null,null,null,null,null,null,null,null,null,null,null,null,null,54]
[null,null,null,null,null,null,null,null,null,null,null,null,null,null,null,null,null,null,null,55]
[null,null,null,null,null,null,null,null,null,null,null,null,null,null,null,null,null,null,null,56]
[null,null,null,null,null,null,null,null,null,null,null,null,null,null,null,null,null,null,null,57]
[null,null,null,null,null,null,null,null,null,null,null,null,null,null,null,null,null,null,null,58]
[null,null,null,null,null,null,null,null,null,null,null,null,null,null,null,null,null,null,null,59]
[1,2,3,4,5,6,7,8,9,10,11,12,13,14,15,16,17,18,19,60]

{"sheet":"ELENCHI","index":4,"n_rows":6,"n_cols":2,"rows_kept":6,"cut":false,"hidden":true,"merged":[]}
["MACROAREA","PUNTEGGIO"]
[]
["A","SI"]
["B","NO"]
["C"]
["D"]

{"sheet":"Sub_Interventi","index":5,"n_rows":76,"n_cols":61,"rows_kept":76,"cut":false,"hidden":true,"merged":[[1,11,18,11],[19,1,45,1],[46,1,57,1],[58,1,60,1],[61,1,64,1],[1,0,74,0],[1,1,18,1],[1,8,45,8],[1,9,45,9],[1,10,45,10],[66,1,72,1],[73,1,74,1],[1,57,45,57],[1,58,45,58],[1,59,18,59],[1,40,45,40],[1,41,45,41],[1,42,45,42],[1,43,18,43],[1,48,45,48],[1,49,45,49],[1,50,45,50],[1,51,18,51],[1,56,45,56],[1,35,18,35],[1,16,45,16],[1,17,45,17],[1,18,45,18],[1,19,18,19],[1,24,45,24],[1,26,45,26],[1,27,18,27],[1,32,45,32],[1,33,45,33],[1,34,45,34],[1,25,45,25]]}
["Tipologia di intervento","Intervento                                                ",null,"art. 45 reg. 1305/13","Sub intervento                                                                     ","n°","OK",411]
[411,"Costruzioni/ristrutturazioni di immobili produttivi\n\n0002\n\nmq",2,"A","Altri opifici",1,"X",{"$f":"CONCATENATE($H$1,TEXT(C2,\"0000\"),D2,TEXT(F2,\"0000\"),\" -\",E2,)","v":"4110002A0001 -Altri opifici"},null,null,null,null,null,null,null,null,null,null,null,"c) spese generali collegate alle spese;","onorari di architetti, ingegneri e consulenti in genere",null,null,null,null,null,null,"c) spese generali collegate alle spese;","onorari di architetti, ingegneri e consulenti in genere",null,null,null,null,null,null,"c) spese generali collegate alle spese;","onorari di architetti, ingegneri e consulenti in genere",null,null,null,null,null,null,"c) spese generali collegate alle spese;","onorari di architetti, ingegneri e consulenti in genere",null,null,null,null,null,null,"c) spese generali collegate alle spese;","onorari di architetti, ingegneri e consulenti in genere",null,null,null,null,null,null,"c) spese generali collegate alle spese;","onorari di architetti, ingegneri e consulenti in genere"]
[null,null,2,"A","Cantine",2,"X",{"$f":"CONCATENATE($H$1,TEXT(C3,\"0000\"),D3,TEXT(F3,\"0000\"),\" -\",E3,)","v":"4110002A0002 -Cantine"}]
[null,null,2,"A","Caseifici per latte bovino ",3,"X","4110002A0003 -Caseifici per latte bovino "]
[null,null,2,"A","Caseifici per latte bufalino",4,"X","4110002A0004 -Caseifici per latte bufalino"]
[null,null,2,"A","Lavorazione ortofrutta",5,"X","4110002A0005 -Lavorazione ortofrutta"]
[null,null,2,"A","Locali per la vendita diretta",6,"X","4110002A0006 -Locali per la vendita diretta"]
[null,null,2,"A","Oleifici",7,"X","4110002A0007 -Oleifici"]
[null,null,2,"A","Serre per Floricoltura",8,"X","4110002A0008 -Serre per Floricoltura"]
[null,null,2,"A","Serre per Frutticoltura",9,"X","4110002A0009 -Serre per Frutticoltura"]
[null,null,2,"A","Serre per Orticoltura",10,"X","4110002A0010 -Serre per Orticoltura"]
[null,null,2,"A","Serre per Vivaismo",11,"X","4110002A0011 -Serre per Vivaismo"]
[null,null,2,"A","Strutture di allevamento per Altro",12,"X","4110002A0012 -Strutture di allevamento per Altro"]
[null,null,2,"A","Strutture di allevamento per Avicoli",13,"X","4110002A0013 -Strutture di allevamento per Avicoli"]
[null,null,2,"A","Strutture di allevamento per Bovini",14,"X","4110002A0014 -Strutture di allevamento per Bovini"]
[null,null,2,"A","Strutture di allevamento per Bufalini",15,"X","4110002A0015 -Strutture di allevamento per Bufalini"]
[null,null,2,"A","Strutture di allevamento per Conigli",16,"X","4110002A0016 -Strutture di allevamento per Conigli"]
[null,null,2,"A","Strutture di allevamento per Ovicaprini",17,"X","4110002A0017 -Strutture di allevamento per Ovicaprini"]
[null,null,2,"A","Strutture di allevamento per Suini",18,"X","4110002A0018 -Strutture di allevamento per Suini"]
[null,"Acquisto di macchinari ed attrezzature per la realizzazione delle produzioni aziendali anche per la prima lavorazione dei prodotti e trasformazione\n\n0003\n\nn°",3,"B","Altre attrezzature per la trasformazione del latte ",1,"X","4110003B0001 -Altre attrezzature per la trasformazione del latte "]
[null,null,3,"B","Altre attrezzature per strutture di allevamento ",2,"X","4110003B0002 -Altre attrezzature per strutture di allevamento "]
[null,null,3,"B","Altre attrezzature per strutture di allevamento per latte bovino",3,"X","4110003B0003 -Altre attrezzature per strutture di allevamento per latte bovino"]
[null,null,3,"B","Altre attrezzature per strutture di allevamento per latte bufalino",4,"X","4110003B0004 -Altre attrezzature per strutture di allevamento per latte bufalino"]
[null,null,3,"B","Altre macchine e attrezzature per la realizzazione delle produzioni",5,"X","4110003B0005 -Altre macchine e attrezzature per la realizzazione delle produzioni"]
[null,null,3,"B","Altre macchine per la semina",6,"X","4110003B0006 -Altre macchine per la semina"]
[null,null,3,"B","Altre macchine semoventi",7,"X","4110003B0007 -Altre macchine semoventi"]
[null,null,3,"B","Altro per la trasformazione ",8,"X","4110003B0008 -Altro per la trasformazione "]
[null,null,3,"B","Attrezzature di cantina",9,"X","4110003B0009 -Attrezzature di cantina"]
[null,null,3,"B","Attrezzature per la lavorazione del terreno",10,"X","4110003B0010 -Attrezzature per la lavorazione del terreno"]
[null,null,3,"B","Attrezzature per la trasformazione del latte bovino",11,"X","4110003B0011 -Attrezzature per la trasformazione del latte bovino"]
[null,null,3,"B","Attrezzature per la trasformazione del latte bufalino",12,"X","4110003B0012 -Attrezzature per la trasformazione del latte bufalino"]
[null,null,3,"B","Attrezzature per la trasformazione dell’ortofrutta",13,"X","4110003B0013 -Attrezzature per la trasformazione dell’ortofrutta"]
[null,null,3,"B","Attrezzature per l'irrigazione",14,"X","4110003B0014 -Attrezzature per l'irrigazione"]
[null,null,3,"B","Attrezzature per oleifici",15,"X","4110003B0015 -Attrezzature per oleifici"]
[null,null,3,"B","Attrezzature per sale di mungitura per latte bovino",16,"X","4110003B0016 -Attrezzature per sale di mungitura per latte bovino"]
[null,null,3,"B","Attrezzature per sale di mungitura per latte bufalino",17,"X","4110003B0017 -Attrezzature per sale di mungitura per latte bufalino"]
[null,null,3,"B","Impianti frigoriferi/celle frigorifere",18,"X","4110003B0018 -Impianti frigoriferi/celle frigorifere"]
[null,null,3,"B","Macchine ed attrezzature per la commercializzazione",19,"X","4110003B0019 -Macchine ed attrezzature per la commercializzazione"]
[null,null,3,"B","Macchine per la distribuzione di fitofarmaci",20,"X","4110003B0020 -Macchine per la distribuzione di fitofarmaci"]
[null,null,3,"B","Macchine per la prima lavorazione delle produzioni aziendali",21,"X","4110003B0021 -Macchine per la prima lavorazione delle produzioni aziendali"]
[null,null,3,"B","Macchine per la raccolta",22,"X","4110003B0022 -Macchine per la raccolta"]
[null,null,3,"B","Macchine per la semina su sodo",23,"X","4110003B0023 -Macchine per la semina su sodo"]
[null,null,3,"B","Mietitrebbia",24,"X","4110003B0024 -Mietitrebbia"]
[null,null,3,"B","Muletti (transpallet)",25,"X","4110003B0025 -Muletti (transpallet)"]
[null,null,3,"B","Trattrici cingolate",26,"X","4110003B0026 -Trattrici cingolate"]
[null,null,3,"B","Trattrici gommate",27,"X","4110003B0027 -Trattrici gommate"]
[null,"Miglioramenti fondiari\n\n0004\n\nmq\n",4,"A","Impianti di fruttiferi - Albicocco",1,"X","4110004A0001 -Impianti di fruttiferi - Albicocco"]
[null,null,4,"A","Impianti di fruttiferi - Altro",2,"X","4110004A0002 -Impianti di fruttiferi - Altro"]
[null,null,4,"A","Impianti di fruttiferi - Castagno",3,"X","4110004A0003 -Impianti di fruttiferi - Castagno"]
[null,null,4,"A","Impianti di fruttiferi - Fico",4,"X","4110004A0004 -Impianti di fruttiferi - Fico"]
[null,null,4,"A","Impianti di fruttiferi - Limone",5,"X","4110004A0005 -Impianti di fruttiferi - Limone"]
[null,null,4,"A","Impianti di fruttiferi - Melo",6,"X","4110004A0006 -Impianti di fruttiferi - Melo"]
[null,null,4,"A","Impianti di fruttiferi - Nocciolo",7,"X","4110004A0007 -Impianti di fruttiferi - Nocciolo"]
[null,null,4,"A","Impianti di fruttiferi - Olivo",8,"X","4110004A0008 -Impianti di fruttiferi - Olivo"]
[null,null,4,"A","Impianti di fruttiferi - Pesco",9,"X","4110004A0009 -Impianti di fruttiferi - Pesco"]
[null,null,4,"A","Impianti di fruttiferi - Vite",10,"X","4110004A0010 -Impianti di fruttiferi - Vite"]
[null,null,4,"A","Realizzazione degli elementi strutturali per la gestione dei pascoli aziendali",11,"X","4110004A0011 -Realizzazione degli elementi strutturali per la gestione dei pascoli aziendali"]
[null,null,4,"A","Sistemazione dei terreni aziendali allo scopo di evitare i ristagni idrici e l’erosione del suolo",12,"X","4110004A0012 -Sistemazione dei terreni aziendali allo scopo di evitare i ristagni idrici e l’erosione del suolo"]
[null,"Acquisto e/o realizzazione di impianti\n0005\nmq",5,"B","Impianti antibrina",1,"X","4110005B0001 -Impianti antibrina"]
[null,null,5,"B","Impianti anticracking ",2,"X","4110005B0002 -Impianti anticracking "]
[null,null,5,"B","Impianti di ombreggiamento",3,"X","4110005B0003 -Impianti di ombreggiamento"]
[null,"Impianti per  la produzione di energia da fonti rinnovabili\n\n0006\nn°",6,"B","Impianti di energia da biomasse",1,"X","4110006B0001 -Impianti di energia da biomasse"]
[null,null,6,"B","Impianti di energia eolica",2,"X","4110006B0002 -Impianti di energia eolica"]
[null,null,6,"B","Impianto solare fotovoltaico",3,"X","4110006B0003 -Impianto solare fotovoltaico"]
[null,null,6,"B","Impianto solare termico e termodinamico",4,"X","4110006B0004 -Impianto solare termico e termodinamico"]
[null,"Investimenti immateriali - 0007",7,"D","Acquisto di programmi informatici e di brevetti/licenze ",1,"X","4110007D0001 -Acquisto di programmi informatici e di brevetti/licenze "]
[null,"Investimenti non produttivi\n\n0008\n\nn°",8,"A","Altri investimenti",1,"X",{"$f":"CONCATENATE($H$1,TEXT(C67,\"0000\"),D67,TEXT(F67,\"0000\"),\" -\",E67,)","v":"4110008A0001 -Altri investimenti"}]
[null,null,8,"A","Aree di servizio",2,"X","4110008A0002 -Aree di servizio"]
[null,null,8,"A","Depositi",3,"X","4110008A0003 -Depositi"]
[null,null,8,"A","Impianti di illuminazione",4,"X","4110008A0004 -Impianti di illuminazione"]
[null,null,8,"A","Realizzazione di strade poderali e/o spazi per la manovra dei mezzi agricoli",5,"X","4110008A0005 -Realizzazione di strade poderali e/o spazi per la manovra dei mezzi agricoli"]
[null,null,8,"A","Recinzioni",6,"X","4110008A0006 -Recinzioni"]
[null,null,8,"A","Uffici",7,"X","4110008A0007 -Uffici"]
[null,"Spese generali\n0009",9,"C","SPESE GENERALI MAX 5%",1,"X","4110009C0001 -SPESE GENERALI MAX 5%"]
[null,null,9,"C","SPESE GENERALI MAX 10%",2,"X","4110009C0002 -SPESE GENERALI MAX 10%"]
[null,null,null,null,null,{"$f":"COUNT(F2:F75)","v":74},{"$f":"COUNTIF(G2:G75,\"X\")","v":74}]